[Event "Titled Tuesday Blitz March 14 Early 2023"]
[White "Caruana, Fabiano"]
[Black "Makhnev, Denis"]
[WhiteFideId "2020009"]
[BlackFideId "13707647"]
[WhiteElo "2818"]
[BlackElo "2525"]
[Result "0-1"]
[Round "11"]
[TimeControl "180+2"]
[Date "2023.03.14"]
[WhiteClock "0:00:01"]
[BlackClock "0:00:01"]

1. c4 {[%clk 0:03:00]}  e5 {[%clk 0:02:59]} 2. Nc3 {[%clk 0:03:01]}  Nf6 {[%clk 0:02:59]} 3. g3 {[%clk 0:03:02]}  Bb4 {[%clk 0:02:58]} 4. e4 {[%clk 0:03:02]}  O-O {[%clk 0:02:54]} 5. Nge2 {[%clk 0:03:01]}  Nc6 {[%clk 0:02:26]} 6. Bg2 {[%clk 0:03:01]}  d6 {[%clk 0:02:26]} 7. O-O {[%clk 0:03:00]}  a5 {[%clk 0:02:26]} 8. d3 {[%clk 0:02:59]}  h6 {[%clk 0:02:26]} 9. h3 {[%clk 0:02:58]}  Bc5 {[%clk 0:02:26]} 10. Kh2 {[%clk 0:02:58]}  Nd4 {[%clk 0:02:25]} 11. Nxd4 {[%clk 0:02:58]}  Bxd4 {[%clk 0:02:25]} 12. f4 {[%clk 0:02:56]}  c6 {[%clk 0:02:25]} 13. f5 {[%clk 0:02:50]}  Bxc3 {[%clk 0:02:19]} 14. bxc3 {[%clk 0:02:50]}  d5 {[%clk 0:02:20]} 15. Qe2 {[%clk 0:02:45]}  dxe4 {[%clk 0:02:11]} 16. dxe4 {[%clk 0:02:44]}  Qe7 {[%clk 0:02:11]} 17. a4 {[%clk 0:02:25]}  Rd8 {[%clk 0:01:57]} 18. g4 {[%clk 0:02:10]}  Nh7 {[%clk 0:01:52]} 19. Be3 {[%clk 0:02:06]}  c5 {[%clk 0:01:42]} 20. Rab1 {[%clk 0:01:42]}  Ra6 {[%clk 0:01:42]} 21. Qf2 {[%clk 0:01:20]}  b6 {[%clk 0:01:37]} 22. h4 {[%clk 0:01:18]}  f6 {[%clk 0:01:36]} 23. Rfd1 {[%clk 0:01:12]}  Rxd1 {[%clk 0:01:28]} 24. Rxd1 {[%clk 0:01:13]}  Bd7 {[%clk 0:01:28]} 25. Qc2 {[%clk 0:01:03]}  Bc6 {[%clk 0:01:24]} 26. Bf3 {[%clk 0:01:02]}  Ra8 {[%clk 0:01:16]} 27. Rb1 {[%clk 0:00:57]}  Qc7 {[%clk 0:01:16]} 28. Rd1 {[%clk 0:00:55]}  Rd8 {[%clk 0:01:16]} 29. Rd5 {[%clk 0:00:47]}  Bxd5 {[%clk 0:01:12]} 30. cxd5 {[%clk 0:00:48]}  Qe7 {[%clk 0:01:02]} 31. Be2 {[%clk 0:00:44]}  Rd6 {[%clk 0:00:59]} 32. Bc4 {[%clk 0:00:42]}  Kh8 {[%clk 0:00:58]} 33. Qb1 {[%clk 0:00:41]}  Nf8 {[%clk 0:00:57]} 34. Kg2 {[%clk 0:00:38]}  Qd7 {[%clk 0:00:46]} 35. Bb5 {[%clk 0:00:38]}  Qc7 {[%clk 0:00:47]} 36. Qh1 {[%clk 0:00:33]}  Kg8 {[%clk 0:00:43]} 37. Kf2 {[%clk 0:00:33]}  Qe7 {[%clk 0:00:38]} 38. Qb1 {[%clk 0:00:32]}  Qc7 {[%clk 0:00:37]} 39. Bc4 {[%clk 0:00:30]}  Qf7 {[%clk 0:00:33]} 40. Qb5 {[%clk 0:00:28]}  Qd7 {[%clk 0:00:34]} 41. Qb3 {[%clk 0:00:27]}  Kh8 {[%clk 0:00:33]} 42. Qd1 {[%clk 0:00:27]}  Kg8 {[%clk 0:00:33]} 43. Bb5 {[%clk 0:00:26]}  Qc7 {[%clk 0:00:33]} 44. Be2 {[%clk 0:00:26]}  Nh7 {[%clk 0:00:32]} 45. Qb3 {[%clk 0:00:25]}  Qd7 {[%clk 0:00:32]} 46. Ke1 {[%clk 0:00:25]}  Kh8 {[%clk 0:00:28]} 47. Kd2 {[%clk 0:00:25]}  Kg8 {[%clk 0:00:28]} 48. Qc4 {[%clk 0:00:25]}  Kh8 {[%clk 0:00:23]} 49. Kc2 {[%clk 0:00:26]}  Kg8 {[%clk 0:00:23]} 50. Kb3 {[%clk 0:00:26]}  Kh8 {[%clk 0:00:23]} 51. Qa6 {[%clk 0:00:27]}  Nf8 {[%clk 0:00:21]} 52. Bb5 {[%clk 0:00:24]}  Qc7 {[%clk 0:00:20]} 53. Kc4 {[%clk 0:00:23]}  Kg8 {[%clk 0:00:20]} 54. Qa8 {[%clk 0:00:22]}  Rd8 {[%clk 0:00:20]} 55. Qc6 {[%clk 0:00:23]}  Qb8 {[%clk 0:00:12]} 56. Ba6 {[%clk 0:00:21]}  Rd6 {[%clk 0:00:10]} 57. Qb7 {[%clk 0:00:20]}  Qd8 {[%clk 0:00:07]} 58. Bb5 {[%clk 0:00:19]}  Nd7 {[%clk 0:00:06]} 59. Bc6 {[%clk 0:00:18]}  Nb8 {[%clk 0:00:07]} 60. Bb5 {[%clk 0:00:17]}  Nd7 {[%clk 0:00:07]} 61. Qa7 {[%clk 0:00:17]}  Qb8 {[%clk 0:00:04]} 62. Qxb8+ {[%clk 0:00:14]}  Nxb8 {[%clk 0:00:05]} 63. g5 {[%clk 0:00:12]}  hxg5 {[%clk 0:00:05]} 64. hxg5 {[%clk 0:00:13]}  Kf8 {[%clk 0:00:06]} 65. g6 {[%clk 0:00:13]}  Ke7 {[%clk 0:00:06]} 66. Bf2 {[%clk 0:00:13]}  Rd8 {[%clk 0:00:07]} 67. Bc6 {[%clk 0:00:09]}  Kd6 {[%clk 0:00:06]} 68. Kb5 {[%clk 0:00:09]}  Kc7 {[%clk 0:00:07]} 69. Ba8 {[%clk 0:00:08]}  Rh8 {[%clk 0:00:06]} 70. Be3 {[%clk 0:00:08]}  Rh3 {[%clk 0:00:04]} 71. Bd2 {[%clk 0:00:08]}  Rd3 {[%clk 0:00:04]} 72. Be1 {[%clk 0:00:08]}  Re3 {[%clk 0:00:03]} 73. Bd2 {[%clk 0:00:08]}  Re2 {[%clk 0:00:03]} 74. Bc1 {[%clk 0:00:08]}  Rc2 {[%clk 0:00:03]} 75. Be3 {[%clk 0:00:06]}  Rb2+ {[%clk 0:00:04]} 76. Kc4 {[%clk 0:00:05]}  Kd6 {[%clk 0:00:04]} 77. Bg5 {[%clk 0:00:04]}  Rg2 {[%clk 0:00:02]} 78. Be3 {[%clk 0:00:03]}  Re2 {[%clk 0:00:02]} 79. Kd3 {[%clk 0:00:04]}  Ra2 {[%clk 0:00:03]} 80. Bd2 {[%clk 0:00:03]}  Ke7 {[%clk 0:00:03]} 81. Be3 {[%clk 0:00:03]}  Rxa4 {[%clk 0:00:03]} 82. Bb7 {[%clk 0:00:03]}  Ra1 {[%clk 0:00:03]} 83. Kc4 {[%clk 0:00:03]}  Re1 {[%clk 0:00:03]} 84. Bd2 {[%clk 0:00:03]}  Rxe4+ {[%clk 0:00:03]} 85. Kb5 {[%clk 0:00:04]}  Re2 {[%clk 0:00:02]} 86. Bh6 {[%clk 0:00:03]}  Rb2+ {[%clk 0:00:02]} 87. Kc4 {[%clk 0:00:02]}  Kf8 {[%clk 0:00:02]} 88. Be3 {[%clk 0:00:01]}  a4 {[%clk 0:00:02]} 89. Bc1 {[%clk 0:00:01]}  Rb1 {[%clk 0:00:02]} 90. Ba3 {[%clk 0:00:01]}  Ke7 {[%clk 0:00:01]} 0-1


[Site "https://www.chess.com"]

[Event "Titled Tuesday Blitz March 14 Early 2023"]
[White "Erigaisi Arjun"]
[Black "Xu, Xiangyu"]
[WhiteFideId "35009192"]
[BlackFideId "8608288"]
[WhiteElo "2737"]
[BlackElo "2477"]
[Result "1-0"]
[Round "11"]
[TimeControl "180+2"]
[Date "2023.03.14"]
[WhiteClock "0:00:03"]
[BlackClock "0:00:02"]

1. c4 {[%clk 0:03:00]}  e6 {[%clk 0:02:58]} 2. Nc3 {[%clk 0:03:00]}  d5 {[%clk 0:02:58]} 3. d4 {[%clk 0:03:01]}  Nf6 {[%clk 0:02:53]} 4. cxd5 {[%clk 0:03:01]}  Nxd5 {[%clk 0:02:54]} 5. e4 {[%clk 0:03:01]}  Nxc3 {[%clk 0:02:54]} 6. bxc3 {[%clk 0:03:02]}  c5 {[%clk 0:02:55]} 7. Rb1 {[%clk 0:03:02]}  Be7 {[%clk 0:02:54]} 8. Bc4 {[%clk 0:02:58]}  O-O {[%clk 0:02:54]} 9. Ne2 {[%clk 0:02:59]}  Qc7 {[%clk 0:02:54]} 10. Bb3 {[%clk 0:02:55]}  Nc6 {[%clk 0:02:46]} 11. O-O {[%clk 0:02:51]}  Rd8 {[%clk 0:02:41]} 12. Be3 {[%clk 0:02:42]}  b6 {[%clk 0:02:41]} 13. Qd2 {[%clk 0:02:08]}  Ba6 {[%clk 0:02:38]} 14. Rfd1 {[%clk 0:02:09]}  Rac8 {[%clk 0:02:35]} 15. Nf4 {[%clk 0:02:04]}  Na5 {[%clk 0:02:23]} 16. d5 {[%clk 0:01:43]}  Bd6 {[%clk 0:01:54]} 17. Qc1 {[%clk 0:01:41]}  exd5 {[%clk 0:01:47]} 18. Bxd5 {[%clk 0:01:39]}  Nc4 {[%clk 0:01:45]} 19. g3 {[%clk 0:01:27]}  Be5 {[%clk 0:01:39]} 20. Nh5 {[%clk 0:01:15]}  g6 {[%clk 0:01:22]} 21. Bg5 {[%clk 0:01:00]}  gxh5 {[%clk 0:00:48]} 22. Bxd8 {[%clk 0:00:59]}  Rxd8 {[%clk 0:00:48]} 23. Qg5+ {[%clk 0:00:57]}  Kh8 {[%clk 0:00:49]} 24. Bxf7 {[%clk 0:00:21]}  Rf8 {[%clk 0:00:48]} 25. Be6 {[%clk 0:00:21]}  Qg7 {[%clk 0:00:41]} 26. Qxh5 {[%clk 0:00:21]}  Qg6 {[%clk 0:00:27]} 27. Qxg6 {[%clk 0:00:17]}  hxg6 {[%clk 0:00:28]} 28. Rd7 {[%clk 0:00:18]}  Bc8 {[%clk 0:00:21]} 29. Re7 {[%clk 0:00:08]}  Bf6 {[%clk 0:00:18]} 30. Rf7 {[%clk 0:00:07]}  Rxf7 {[%clk 0:00:19]} 31. Bxf7 {[%clk 0:00:08]}  Ne5 {[%clk 0:00:18]} 32. Bd5 {[%clk 0:00:07]}  g5 {[%clk 0:00:18]} 33. Kg2 {[%clk 0:00:07]}  g4 {[%clk 0:00:18]} 34. a4 {[%clk 0:00:07]}  Nd3 {[%clk 0:00:17]} 35. a5 {[%clk 0:00:06]}  Bxc3 {[%clk 0:00:17]} 36. axb6 {[%clk 0:00:07]}  axb6 {[%clk 0:00:17]} 37. Rxb6 {[%clk 0:00:07]}  Kg7 {[%clk 0:00:14]} 38. Rc6 {[%clk 0:00:07]}  Bd7 {[%clk 0:00:14]} 39. Rc7 {[%clk 0:00:07]}  Ne5 {[%clk 0:00:14]} 40. Be6 {[%clk 0:00:07]}  Kf6 {[%clk 0:00:09]} 41. Bxd7 {[%clk 0:00:07]}  Bd4 {[%clk 0:00:09]} 42. Bf5 {[%clk 0:00:06]}  c4 {[%clk 0:00:08]} 43. h3 {[%clk 0:00:06]}  gxh3+ {[%clk 0:00:05]} 44. Bxh3 {[%clk 0:00:07]}  c3 {[%clk 0:00:04]} 45. f4 {[%clk 0:00:07]}  Nd3 {[%clk 0:00:05]} 46. e5+ {[%clk 0:00:07]}  Kg6 {[%clk 0:00:04]} 47. Kf1 {[%clk 0:00:05]}  Nb4 {[%clk 0:00:03]} 48. Bg2 {[%clk 0:00:05]}  Kf5 {[%clk 0:00:02]} 49. Ke2 {[%clk 0:00:04]}  c2 {[%clk 0:00:02]} 50. Kd2 {[%clk 0:00:04]}  Bf2 {[%clk 0:00:02]} 51. Bh3+ {[%clk 0:00:03]}  Ke4 {[%clk 0:00:02]} 52. Rc4+ {[%clk 0:00:03]} 1-0


[Site "https://www.chess.com"]

[Event "Titled Tuesday Blitz March 14 Early 2023"]
[White "Vakhlamov, Igor L."]
[Black "Nguyen, Ngoc Truong Son"]
[WhiteFideId "24126748"]
[BlackFideId "12401110"]
[WhiteElo "2400"]
[BlackElo "2571"]
[Result "0-1"]
[Round "11"]
[TimeControl "180+2"]
[Date "2023.03.14"]
[WhiteClock "0:00:03"]
[BlackClock "0:00:03"]

1. e4 {[%clk 0:03:00]}  c5 {[%clk 0:02:58]} 2. Nf3 {[%clk 0:03:00]}  e6 {[%clk 0:02:59]} 3. Nc3 {[%clk 0:02:59]}  a6 {[%clk 0:02:56]} 4. g3 {[%clk 0:02:53]}  b5 {[%clk 0:02:56]} 5. Bg2 {[%clk 0:02:53]}  Bb7 {[%clk 0:02:56]} 6. d3 {[%clk 0:02:53]}  g6 {[%clk 0:02:55]} 7. d4 {[%clk 0:02:48]}  b4 {[%clk 0:02:53]} 8. Na4 {[%clk 0:02:47]}  Bxe4 {[%clk 0:02:52]} 9. Nxc5 {[%clk 0:02:46]}  Bd5 {[%clk 0:02:24]} 10. O-O {[%clk 0:02:44]}  Nc6 {[%clk 0:02:16]} 11. Re1 {[%clk 0:02:37]}  Bg7 {[%clk 0:02:03]} 12. Bf4 {[%clk 0:02:23]}  Nge7 {[%clk 0:02:03]} 13. Nb7 {[%clk 0:02:19]}  Qb6 {[%clk 0:02:03]} 14. Nd6+ {[%clk 0:02:18]}  Kf8 {[%clk 0:02:03]} 15. c3 {[%clk 0:01:50]}  h6 {[%clk 0:02:00]} 16. Ne5 {[%clk 0:01:33]}  Bxe5 {[%clk 0:01:53]} 17. dxe5 {[%clk 0:01:27]}  Bxg2 {[%clk 0:01:48]} 18. Kxg2 {[%clk 0:01:28]}  bxc3 {[%clk 0:01:38]} 19. bxc3 {[%clk 0:01:20]}  g5 {[%clk 0:01:32]} 20. Be3 {[%clk 0:01:14]}  Qa5 {[%clk 0:01:30]} 21. Bd4 {[%clk 0:00:53]}  Qd5+ {[%clk 0:01:06]} 22. Kg1 {[%clk 0:00:52]}  Kg7 {[%clk 0:01:03]} 23. Qe2 {[%clk 0:00:46]}  Nxd4 {[%clk 0:00:58]} 24. cxd4 {[%clk 0:00:47]}  Rhf8 {[%clk 0:00:19]} 25. Rad1 {[%clk 0:00:42]}  f5 {[%clk 0:00:18]} 26. exf6+ {[%clk 0:00:36]}  Rxf6 {[%clk 0:00:18]} 27. Ne4 {[%clk 0:00:37]}  Rf5 {[%clk 0:00:18]} 28. Nc3 {[%clk 0:00:37]}  Qc6 {[%clk 0:00:17]} 29. Rc1 {[%clk 0:00:33]}  Raf8 {[%clk 0:00:16]} 30. Rf1 {[%clk 0:00:22]}  Qd6 {[%clk 0:00:15]} 31. Rcd1 {[%clk 0:00:17]}  Nd5 {[%clk 0:00:15]} 32. Ne4 {[%clk 0:00:18]}  Qa3 {[%clk 0:00:13]} 33. Nc5 {[%clk 0:00:18]}  R8f7 {[%clk 0:00:11]} 34. Rd3 {[%clk 0:00:18]}  Qa5 {[%clk 0:00:10]} 35. h4 {[%clk 0:00:17]}  gxh4 {[%clk 0:00:09]} 36. Qg4+ {[%clk 0:00:17]}  Rg5 {[%clk 0:00:10]} 37. Qxh4 {[%clk 0:00:17]}  Qd8 {[%clk 0:00:08]} 38. Kg2 {[%clk 0:00:17]}  Nf4+ {[%clk 0:00:06]} 39. Kg1 {[%clk 0:00:11]}  Nxd3 {[%clk 0:00:05]} 40. Nxd3 {[%clk 0:00:12]}  Rf3 {[%clk 0:00:04]} 41. Ne5 {[%clk 0:00:10]}  Rf8 {[%clk 0:00:04]} 42. Kg2 {[%clk 0:00:09]}  d6 {[%clk 0:00:02]} 43. Rh1 {[%clk 0:00:08]}  Qa8+ {[%clk 0:00:03]} 44. f3 {[%clk 0:00:07]}  Rf6 {[%clk 0:00:03]} 45. Ng4 {[%clk 0:00:06]}  Qxf3+ {[%clk 0:00:03]} 46. Kg1 {[%clk 0:00:03]}  Rxg4 {[%clk 0:00:03]} 47. Qxh6+ {[%clk 0:00:03]}  Rxh6 {[%clk 0:00:03]} 0-1


[Site "https://www.chess.com"]

[Event "Titled Tuesday Blitz March 14 Early 2023"]
[White "Real_OceanStorm"]
[Black "Rustemov, Alexander"]
[BlackFideId "4119002"]
[WhiteElo "2819"]
[BlackElo "2931"]
[Result "0-1"]
[Round "11"]
[TimeControl "180+2"]
[Date "2023.03.14"]
[WhiteClock "0:01:19"]
[BlackClock "0:01:22"]

1. Nf3 {[%clk 0:03:00]}  d5 {[%clk 0:02:59]} 2. d4 {[%clk 0:03:01]}  Nf6 {[%clk 0:02:59]} 3. c4 {[%clk 0:03:02]}  c6 {[%clk 0:02:59]} 4. Nc3 {[%clk 0:03:03]}  a6 {[%clk 0:02:59]} 5. Bg5 {[%clk 0:03:03]}  Ne4 {[%clk 0:02:58]} 6. Bf4 {[%clk 0:03:03]}  Qa5 {[%clk 0:02:58]} 7. Bd2 {[%clk 0:02:57]}  Nxd2 {[%clk 0:02:53]} 8. Nxd2 {[%clk 0:02:56]}  e6 {[%clk 0:02:32]} 9. e3 {[%clk 0:02:55]}  Nd7 {[%clk 0:02:30]} 10. Nb3 {[%clk 0:02:55]}  Qd8 {[%clk 0:02:21]} 11. c5 {[%clk 0:02:53]}  e5 {[%clk 0:02:17]} 12. Qd2 {[%clk 0:02:46]}  g6 {[%clk 0:02:16]} 13. g3 {[%clk 0:02:40]}  Bg7 {[%clk 0:02:16]} 14. Bg2 {[%clk 0:02:40]}  O-O {[%clk 0:02:17]} 15. O-O {[%clk 0:02:38]}  e4 {[%clk 0:02:06]} 16. Ne2 {[%clk 0:02:37]}  f5 {[%clk 0:02:06]} 17. Nf4 {[%clk 0:02:29]}  Nf6 {[%clk 0:02:06]} 18. h4 {[%clk 0:02:28]}  Qe8 {[%clk 0:02:04]} 19. Nc1 {[%clk 0:02:15]}  h6 {[%clk 0:02:04]} 20. Nce2 {[%clk 0:02:07]}  g5 {[%clk 0:02:05]} 21. hxg5 {[%clk 0:02:05]}  hxg5 {[%clk 0:02:05]} 22. Nh3 {[%clk 0:02:05]}  Qh5 {[%clk 0:02:05]} 23. f4 {[%clk 0:02:00]}  exf3 {[%clk 0:02:01]} 24. Rxf3 {[%clk 0:01:34]}  Ne4 {[%clk 0:02:01]} 25. Qe1 {[%clk 0:01:26]}  f4 {[%clk 0:01:59]} 26. Nf2 {[%clk 0:01:25]}  Nxf2 {[%clk 0:01:36]} 27. Qxf2 {[%clk 0:01:23]}  Bg4 {[%clk 0:01:36]} 28. exf4 {[%clk 0:01:20]}  Bxf3 {[%clk 0:01:31]} 29. Bxf3 {[%clk 0:01:21]}  g4 {[%clk 0:01:28]} 30. Bg2 {[%clk 0:01:21]}  Rae8 {[%clk 0:01:28]} 31. Re1 {[%clk 0:01:22]}  Qf5 {[%clk 0:01:22]} 32. Nc1 {[%clk 0:01:19]} 0-1


[Site "https://www.chess.com"]

[Event "Titled Tuesday Blitz March 14 Early 2023"]
[White "Narayanan, Srinath"]
[Black "Madaminov, Mukhiddin"]
[WhiteFideId "5018420"]
[BlackFideId "14210703"]
[WhiteElo "2438"]
[BlackElo "2511"]
[Result "1-0"]
[Round "11"]
[TimeControl "180+2"]
[Date "2023.03.14"]
[WhiteClock "0:00:27"]
[BlackClock "0:00:12"]

1. d4 {[%clk 0:03:00]}  Nf6 {[%clk 0:03:00]} 2. c4 {[%clk 0:03:01]}  g6 {[%clk 0:02:58]} 3. g3 {[%clk 0:03:01]}  Bg7 {[%clk 0:02:57]} 4. Bg2 {[%clk 0:03:01]}  d5 {[%clk 0:02:57]} 5. cxd5 {[%clk 0:03:01]}  Nxd5 {[%clk 0:02:58]} 6. Nc3 {[%clk 0:02:59]}  Nxc3 {[%clk 0:02:47]} 7. bxc3 {[%clk 0:02:59]}  O-O {[%clk 0:02:47]} 8. e3 {[%clk 0:02:58]}  c5 {[%clk 0:02:47]} 9. Ne2 {[%clk 0:02:59]}  Nc6 {[%clk 0:02:46]} 10. O-O {[%clk 0:02:59]}  Be6 {[%clk 0:02:46]} 11. d5 {[%clk 0:02:54]}  Bg4 {[%clk 0:02:34]} 12. f3 {[%clk 0:02:51]}  Bd7 {[%clk 0:02:16]} 13. dxc6 {[%clk 0:02:48]}  Bxc6 {[%clk 0:02:17]} 14. Qxd8 {[%clk 0:02:31]}  Raxd8 {[%clk 0:02:08]} 15. Rb1 {[%clk 0:02:31]}  Bd5 {[%clk 0:01:59]} 16. f4 {[%clk 0:02:23]}  Bc4 {[%clk 0:01:59]} 17. Re1 {[%clk 0:02:19]}  b6 {[%clk 0:01:55]} 18. a4 {[%clk 0:02:14]}  Bxe2 {[%clk 0:01:41]} 19. Rxe2 {[%clk 0:02:13]}  Rd1+ {[%clk 0:01:42]} 20. Kf2 {[%clk 0:02:01]}  Bxc3 {[%clk 0:01:42]} 21. Rc2 {[%clk 0:02:00]}  Bf6 {[%clk 0:01:40]} 22. Rd2 {[%clk 0:01:42]}  Rd8 {[%clk 0:01:24]} 23. Rxd8+ {[%clk 0:01:36]}  Rxd8 {[%clk 0:01:25]} 24. Ke2 {[%clk 0:01:36]}  e5 {[%clk 0:01:17]} 25. Bb2 {[%clk 0:01:32]}  Re8 {[%clk 0:01:04]} 26. a5 {[%clk 0:01:12]}  Re6 {[%clk 0:00:53]} 27. Bxe5 {[%clk 0:01:08]}  Bxe5 {[%clk 0:00:53]} 28. fxe5 {[%clk 0:01:09]}  bxa5 {[%clk 0:00:53]} 29. Rb5 {[%clk 0:01:08]}  Rxe5 {[%clk 0:00:54]} 30. Rxa5 {[%clk 0:01:07]}  Rh5 {[%clk 0:00:52]} 31. h4 {[%clk 0:01:03]}  h6 {[%clk 0:00:39]} 32. Rxa7 {[%clk 0:00:55]}  Re5 {[%clk 0:00:35]} 33. Rd7 {[%clk 0:00:54]}  Kg7 {[%clk 0:00:31]} 34. Rd5 {[%clk 0:00:47]}  Kf6 {[%clk 0:00:31]} 35. Rxe5 {[%clk 0:00:42]}  Kxe5 {[%clk 0:00:31]} 36. Kd3 {[%clk 0:00:43]}  Kf5 {[%clk 0:00:21]} 37. Bf3 {[%clk 0:00:39]}  Ke5 {[%clk 0:00:21]} 38. Kc4 {[%clk 0:00:38]}  Kd6 {[%clk 0:00:21]} 39. Bd5 {[%clk 0:00:27]}  f6 {[%clk 0:00:20]} 40. Bf3 {[%clk 0:00:25]}  g5 {[%clk 0:00:17]} 41. hxg5 {[%clk 0:00:21]}  hxg5 {[%clk 0:00:17]} 42. g4 {[%clk 0:00:21]}  Ke6 {[%clk 0:00:15]} 43. Kxc5 {[%clk 0:00:21]}  Ke5 {[%clk 0:00:15]} 44. Kc4 {[%clk 0:00:21]}  f5 {[%clk 0:00:14]} 45. gxf5 {[%clk 0:00:21]}  Kxf5 {[%clk 0:00:15]} 46. Kd4 {[%clk 0:00:19]}  g4 {[%clk 0:00:16]} 47. Bg2 {[%clk 0:00:18]}  g3 {[%clk 0:00:10]} 48. Kd3 {[%clk 0:00:19]}  Ke5 {[%clk 0:00:10]} 49. Ke2 {[%clk 0:00:18]}  Kf5 {[%clk 0:00:11]} 50. Kf3 {[%clk 0:00:18]}  Ke5 {[%clk 0:00:11]} 51. Kxg3 {[%clk 0:00:19]}  Kf5 {[%clk 0:00:11]} 52. Kf3 {[%clk 0:00:20]}  Ke5 {[%clk 0:00:11]} 53. e4 {[%clk 0:00:20]}  Kf6 {[%clk 0:00:10]} 54. Kf4 {[%clk 0:00:21]}  Ke6 {[%clk 0:00:11]} 55. e5 {[%clk 0:00:22]}  Ke7 {[%clk 0:00:11]} 56. Kf5 {[%clk 0:00:22]}  Kf7 {[%clk 0:00:11]} 57. e6+ {[%clk 0:00:23]}  Ke7 {[%clk 0:00:10]} 58. Ke5 {[%clk 0:00:23]}  Ke8 {[%clk 0:00:09]} 59. Kf6 {[%clk 0:00:24]}  Kd8 {[%clk 0:00:08]} 60. e7+ {[%clk 0:00:24]}  Kc7 {[%clk 0:00:09]} 61. e8=Q {[%clk 0:00:23]}  Kb6 {[%clk 0:00:09]} 62. Qc8 {[%clk 0:00:23]}  Kb5 {[%clk 0:00:08]} 63. Qc7 {[%clk 0:00:24]}  Kb4 {[%clk 0:00:09]} 64. Qc6 {[%clk 0:00:24]}  Kb3 {[%clk 0:00:09]} 65. Qc5 {[%clk 0:00:25]}  Ka4 {[%clk 0:00:10]} 66. Qb6 {[%clk 0:00:25]}  Ka3 {[%clk 0:00:10]} 67. Ke5 {[%clk 0:00:26]}  Ka2 {[%clk 0:00:10]} 68. Kd4 {[%clk 0:00:26]}  Ka1 {[%clk 0:00:11]} 69. Bf3 {[%clk 0:00:27]}  Ka2 {[%clk 0:00:11]} 70. Be4 {[%clk 0:00:27]}  Ka1 {[%clk 0:00:12]} 71. Kc3 {[%clk 0:00:28]}  Ka2 {[%clk 0:00:12]} 72. Bb1+ {[%clk 0:00:28]}  Ka1 {[%clk 0:00:12]} 73. Qb2# {[%clk 0:00:27]} 1-0


[Site "https://www.chess.com"]

[Event "Titled Tuesday Blitz March 14 Early 2023"]
[White "Vallejo Pons, Francisco"]
[Black "Liyanage, Ranindu Dilshan"]
[WhiteFideId "2205530"]
[BlackFideId "9915834"]
[WhiteElo "2589"]
[BlackElo "2199"]
[Result "1-0"]
[Round "11"]
[TimeControl "180+2"]
[Date "2023.03.14"]
[WhiteClock "0:00:16"]
[BlackClock "0:00:18"]

1. e4 {[%clk 0:02:59]}  e5 {[%clk 0:02:59]} 2. Nf3 {[%clk 0:02:56]}  Nc6 {[%clk 0:03:00]} 3. Nc3 {[%clk 0:02:57]}  Nf6 {[%clk 0:03:00]} 4. h3 {[%clk 0:02:56]}  Bb4 {[%clk 0:02:55]} 5. a3 {[%clk 0:02:56]}  Bxc3 {[%clk 0:02:46]} 6. dxc3 {[%clk 0:02:57]}  h6 {[%clk 0:02:43]} 7. Be3 {[%clk 0:02:46]}  d6 {[%clk 0:02:37]} 8. Nd2 {[%clk 0:02:44]}  d5 {[%clk 0:02:30]} 9. Bd3 {[%clk 0:02:41]}  g5 {[%clk 0:02:24]} 10. f3 {[%clk 0:02:18]}  Be6 {[%clk 0:02:18]} 11. Qe2 {[%clk 0:02:10]}  Qe7 {[%clk 0:02:07]} 12. O-O-O {[%clk 0:02:03]}  O-O-O {[%clk 0:02:05]} 13. h4 {[%clk 0:01:59]}  g4 {[%clk 0:02:01]} 14. h5 {[%clk 0:01:57]}  d4 {[%clk 0:01:51]} 15. cxd4 {[%clk 0:01:56]}  Nxd4 {[%clk 0:01:52]} 16. Qf2 {[%clk 0:01:49]}  a6 {[%clk 0:01:44]} 17. f4 {[%clk 0:01:38]}  g3 {[%clk 0:01:18]} 18. Qxg3 {[%clk 0:01:31]}  Rhg8 {[%clk 0:01:17]} 19. Qh4 {[%clk 0:01:26]}  Rg4 {[%clk 0:01:16]} 20. Qf2 {[%clk 0:01:23]}  Nc6 {[%clk 0:01:02]} 21. f5 {[%clk 0:01:13]}  Ba2 {[%clk 0:01:01]} 22. Bc5 {[%clk 0:01:09]}  Qe8 {[%clk 0:00:57]} 23. b3 {[%clk 0:00:54]}  Rf4 {[%clk 0:00:47]} 24. Qe2 {[%clk 0:00:47]}  Nd4 {[%clk 0:00:45]} 25. Bxd4 {[%clk 0:00:46]}  exd4 {[%clk 0:00:46]} 26. g3 {[%clk 0:00:33]}  Rg4 {[%clk 0:00:45]} 27. Kb2 {[%clk 0:00:33]}  Rxg3 {[%clk 0:00:46]} 28. Kxa2 {[%clk 0:00:32]}  Re3 {[%clk 0:00:46]} 29. Qf2 {[%clk 0:00:31]}  Qc6 {[%clk 0:00:47]} 30. Nc4 {[%clk 0:00:30]}  Rxe4 {[%clk 0:00:45]} 31. Bxe4 {[%clk 0:00:25]}  Nxe4 {[%clk 0:00:46]} 32. Qf4 {[%clk 0:00:24]}  Nc3+ {[%clk 0:00:46]} 33. Kb2 {[%clk 0:00:25]}  b5 {[%clk 0:00:45]} 34. Ne5 {[%clk 0:00:16]}  Nxd1+ {[%clk 0:00:28]} 35. Rxd1 {[%clk 0:00:17]}  Qc3+ {[%clk 0:00:29]} 36. Kb1 {[%clk 0:00:17]}  c5 {[%clk 0:00:25]} 37. Qe4 {[%clk 0:00:16]}  c4 {[%clk 0:00:19]} 38. Qc6+ {[%clk 0:00:16]}  Kb8 {[%clk 0:00:19]} 39. Qb6+ {[%clk 0:00:15]}  Kc8 {[%clk 0:00:19]} 40. Qxa6+ {[%clk 0:00:15]}  Kc7 {[%clk 0:00:18]} 41. Qc6+ {[%clk 0:00:15]}  Kb8 {[%clk 0:00:18]} 42. Qxb5+ {[%clk 0:00:16]} 1-0


[Site "https://www.chess.com"]

[Event "Titled Tuesday Blitz March 14 Early 2023"]
[White "Ibarra Jerez, Jose Carlos"]
[Black "Papasimakopoulos, Alexandros"]
[WhiteFideId "2226332"]
[BlackFideId "4244125"]
[WhiteElo "2638"]
[BlackElo "2359"]
[Result "1-0"]
[Round "11"]
[TimeControl "180+2"]
[Date "2023.03.14"]
[WhiteClock "0:00:06"]
[BlackClock "0:00:01"]

1. e4 {[%clk 0:03:00]}  e6 {[%clk 0:02:59]} 2. d4 {[%clk 0:03:01]}  d5 {[%clk 0:02:59]} 3. Nc3 {[%clk 0:03:01]}  Bb4 {[%clk 0:02:59]} 4. e5 {[%clk 0:03:00]}  c5 {[%clk 0:02:58]} 5. Qg4 {[%clk 0:03:00]}  Ne7 {[%clk 0:02:52]} 6. dxc5 {[%clk 0:02:58]}  Bxc3+ {[%clk 0:02:43]} 7. bxc3 {[%clk 0:02:58]}  O-O {[%clk 0:02:41]} 8. Nf3 {[%clk 0:02:57]}  Nbc6 {[%clk 0:02:26]} 9. Bd3 {[%clk 0:02:57]}  Ng6 {[%clk 0:02:27]} 10. Qh5 {[%clk 0:02:57]}  Bd7 {[%clk 0:01:39]} 11. Ng5 {[%clk 0:02:50]}  h6 {[%clk 0:01:38]} 12. Nxf7 {[%clk 0:02:50]}  Rxf7 {[%clk 0:01:31]} 13. Bxg6 {[%clk 0:02:23]}  Rf8 {[%clk 0:01:27]} 14. O-O {[%clk 0:02:23]}  Be8 {[%clk 0:01:25]} 15. f4 {[%clk 0:02:08]}  Rf5 {[%clk 0:01:10]} 16. Qg4 {[%clk 0:02:02]}  h5 {[%clk 0:00:48]} 17. Qg3 {[%clk 0:02:02]}  Bxg6 {[%clk 0:00:46]} 18. Qxg6 {[%clk 0:02:02]}  Qd7 {[%clk 0:00:40]} 19. Be3 {[%clk 0:02:00]}  Ne7 {[%clk 0:00:32]} 20. Qg3 {[%clk 0:01:59]}  b6 {[%clk 0:00:30]} 21. cxb6 {[%clk 0:01:57]}  axb6 {[%clk 0:00:31]} 22. Bxb6 {[%clk 0:01:56]}  Qa4 {[%clk 0:00:24]} 23. Bc5 {[%clk 0:01:55]}  Rc8 {[%clk 0:00:11]} 24. Bd6 {[%clk 0:01:39]}  Rf7 {[%clk 0:00:06]} 25. Bxe7 {[%clk 0:01:13]}  Rxe7 {[%clk 0:00:07]} 26. Qg5 {[%clk 0:00:59]}  Rf7 {[%clk 0:00:07]} 27. f5 {[%clk 0:00:56]}  exf5 {[%clk 0:00:06]} 28. Rxf5 {[%clk 0:00:46]}  Rxf5 {[%clk 0:00:06]} 29. Qxf5 {[%clk 0:00:46]}  Re8 {[%clk 0:00:05]} 30. Qxh5 {[%clk 0:00:26]}  Rf8 {[%clk 0:00:03]} 31. h3 {[%clk 0:00:19]}  Qxc2 {[%clk 0:00:01]} 32. e6 {[%clk 0:00:11]}  Qe4 {[%clk 0:00:02]} 33. e7 {[%clk 0:00:10]}  Qxe7 {[%clk 0:00:02]} 34. Qxd5+ {[%clk 0:00:11]}  Kh8 {[%clk 0:00:02]} 35. Qd4 {[%clk 0:00:09]}  Qe2 {[%clk 0:00:02]} 36. a4 {[%clk 0:00:07]}  Qb2 {[%clk 0:00:01]} 37. Rd1 {[%clk 0:00:06]} 1-0


[Site "https://www.chess.com"]